fUSD/lending_fUSD_20240428
["ID","MTS","AMOUNT","RATE_DAILY","PERIOD"]
[324812466,1714341044032,-500.0,0.0001123,2]
[324812467,1714341044041,-1000.0,0.0001123,2]
[324812468,1714341044050,-500.0,0.0001123,2]
[324812469,1714341044059,-500.0,0.0001123,2]
[324812470,1714341044068,-500.0,0.0001123,2]
[324812471,1714341044078,-500.0,0.0001123,2]
[324812472,1714341044087,-500.0,0.0001123,2]
[324812473,1714341044101,-500.0,0.0001123,2]
[324812474,1714341044110,-500.0,0.0001123,2]
[324812475,1714341044120,-500.0,0.0001123,2]
[324812476,1714341044129,-500.0,0.0001123,2]
[324812477,1714341044139,-500.0,0.0001123,2]
[324812478,1714341044148,-500.0,0.0001123,2]
[324812479,1714341044158,-500.0,0.0001123,2]
[324812480,1714341044167,-500.0,0.0001123,2]
[324812481,1714341044178,-500.0,0.0001123,2]
[324812482,1714341044188,-500.0,0.0001123,2]
[324812483,1714341044197,-500.0,0.0001123,2]
[324812484,1714341044207,-500.0,0.0001123,2]
[324812485,1714341044219,-500.0,0.0001123,2]
[324812486,1714341044228,-500.0,0.0001123,2]
[324812487,1714341044238,-500.0,0.0001123,2]
[324812488,1714341044247,-500.0,0.0001123,2]
[324812489,1714341044256,-35267.57312085,0.00011231,2]
[324812490,1714341044266,-2064.16,0.00011231,2]
[324812491,1714341044275,-500.0,0.00011231,2]
[324812492,1714341044284,-843.47,0.00011231,2]
[324812493,1714341044294,-500.0,0.00011231,2]
[324812494,1714341044303,-1166.48,0.00011231,2]
[324812495,1714341044312,-500.0,0.00011231,2]
[324812496,1714341044321,-500.0,0.00011231,2]
[324812497,1714341044330,-592.13,0.00011231,2]
[324812498,1714341044340,-2311.26,0.00011231,2]
[324812499,1714341044349,-500.0,0.00011231,2]
[324812500,1714341044358,-500.0,0.00011231,2]
[324812501,1714341044368,-2248.85,0.00011231,2]
[324812502,1714341044377,-500.0,0.00011232,2]
[324812503,1714341044386,-500.0,0.00011232,2]
[324812504,1714341044395,-500.0,0.00011232,2]
[324812505,1714341044406,-522.43,0.00011232,2]
[324812506,1714341044416,-500.0,0.00011232,2]
[324812507,1714341044425,-519.88,0.00011232,2]
[324812508,1714341044435,-500.0,0.00011232,2]
[324812509,1714341044445,-500.0,0.00011232,2]
[324812510,1714341044455,-500.0,0.00011232,2]
[324812511,1714341044464,-500.0,0.00011232,2]
[324812512,1714341044474,-500.0,0.00011232,2]
[324812513,1714341044483,-500.0,0.00011232,2]
[324812514,1714341044492,-500.0,0.00011232,2]
[324812515,1714341044502,-500.0,0.00011232,2]
[324812516,1714341044511,-500.0,0.00011232,2]
[324812517,1714341044521,-500.0,0.00011232,2]
[324812518,1714341044530,-168.96,0.00011232,2]
[324812519,1714341044540,-500.0,0.00011232,2]
[324812520,1714341044550,-500.0,0.00011232,2]
[324812521,1714341044559,-500.0,0.00011232,2]
[324812522,1714341044569,-452.55,0.00011232,2]
[324812523,1714341044578,-743.26,0.00011232,2]
[324812524,1714341044587,-521.91338485,0.00011232,2]
[324812525,1714341044596,-500.0,0.00011232,2]
[324812526,1714341044605,-426.43,0.00011232,2]
[324812527,1714341044615,-500.0,0.00011232,2]
[324812528,1714341044623,-1035.98,0.00011232,2]
[324812529,1714341044632,-500.0,0.00011232,2]
[324812530,1714341044642,-500.0,0.00011232,2]
[324812531,1714341044651,-583.16,0.00011232,2]
[324812532,1714341044660,-500.0,0.00011232,2]
[324812533,1714341044669,-235.27903176,0.00011232,2]
[324812534,1714341044678,-500.0,0.00011232,2]
[324812535,1714341044687,-365.4421431,0.00011232,2]
[324812536,1714341044697,-500.0,0.00011232,2]
[324812537,1714341044707,-658.41,0.00011232,2]
[324812538,1714341044716,-500.0,0.00011232,2]
[324812539,1714341044725,-1038.44,0.00011232,2]
[324812540,1714341044735,-751.72,0.00011232,2]
[324812541,1714341044744,-500.0,0.00011232,2]
[324812542,1714341044753,-500.0,0.00011232,2]
[324812543,1714341044762,-500.0,0.00011232,2]
[324812544,1714341044771,-500.0,0.00011232,2]
[324812545,1714341044780,-624.18,0.00011232,2]
[324812546,1714341044789,-236.62,0.00011232,2]
[324812547,1714341044798,-618.21,0.00011232,2]
[324812548,1714341044808,-500.0,0.00011232,2]
[324812549,1714341044817,-500.0,0.00011232,2]
[324812550,1714341044826,-500.0,0.00011232,2]
[324812551,1714341044835,-510.93,0.00011232,2]
[324812552,1714341044844,-360.55,0.00011232,2]
[324812553,1714341044854,-500.0,0.00011232,2]
[324812554,1714341044863,-500.0,0.00011232,2]
[324812555,1714341044872,-500.0,0.00011232,2]
[324812556,1714341044882,-500.0,0.00011232,2]
[324812557,1714341044896,-500.0,0.00011232,2]
[324812558,1714341044915,-500.0,0.00011232,2]
[324812559,1714341044928,-158.28,0.00011232,2]
[324812560,1714341044937,-500.0,0.00011232,2]
[324812561,1714341044948,-612.97,0.00011232,2]
[324812562,1714341044958,-500.0,0.00011232,2]
[324812563,1714341044967,-500.0,0.00011232,2]
[324812564,1714341044977,-500.0,0.00011232,2]
[324812565,1714341044986,-208.42,0.00011232,2]
[324812566,1714341044995,-500.0,0.00011232,2]
[324812567,1714341045004,-500.0,0.00011232,2]
[324812568,1714341045014,-500.0,0.00011232,2]
[324812569,1714341045023,-500.0,0.00011232,2]
[324812570,1714341045032,-500.0,0.00011232,2]
[324812571,1714341045041,-500.0,0.00011232,2]
[324812572,1714341045050,-500.0,0.00011232,2]
[324812573,1714341045059,-503.45376376,0.00011232,2]
[324812574,1714341045068,-578.55,0.00011232,2]
[324812575,1714341045077,-500.0,0.00011232,2]
[324812576,1714341045086,-500.0,0.00011232,2]
[324812577,1714341045100,-539.7,0.00011232,2]
[324812578,1714341045109,-500.0,0.00011232,2]
[324812579,1714341045118,-339.55224599,0.00011232,2]
[324812580,1714341045127,-500.0,0.00011232,2]
[324812581,1714341045138,-500.0,0.00011232,2]
[324812582,1714341045147,-500.0,0.00011232,2]
[324812583,1714341045158,-500.0,0.00011232,2]
[324812584,1714341045169,-500.0,0.00011232,2]
[324812585,1714341045179,-500.0,0.00011232,2]
[324812586,1714341045188,-500.0,0.00011232,2]
[324812587,1714341045198,-500.0,0.00011232,2]
[324812588,1714341045209,-505.06489058,0.00011232,2]
[324812589,1714341045219,-500.0,0.00011232,2]
[324812590,1714341045228,-500.0,0.00011232,2]
[324812591,1714341045237,-500.0,0.00011232,2]
[324812592,1714341045247,-488.0823054,0.00011232,2]
[324812593,1714341045256,-503.44,0.00011232,2]
[324812594,1714341045266,-500.0,0.00011232,2]
[324812595,1714341045275,-188.63,0.00011232,2]
[324812596,1714341045285,-500.0,0.00011232,2]
[324812597,1714341045294,-500.0,0.00011232,2]
[324812598,1714341045304,-500.0,0.00011232,2]
[324812599,1714341045313,-500.0,0.00011232,2]
[324812600,1714341045323,-500.0,0.00011232,2]
[324812601,1714341045332,-414.96,0.00011232,2]
[324812602,1714341045342,-602.33,0.00011232,2]
[324812603,1714341045352,-509.78897295,0.00011232,2]
[324812604,1714341045361,-1043.37,0.00011232,2]
[324812605,1714341045370,-500.0,0.00011232,2]
[324812606,1714341045380,-500.0,0.00011232,2]
[324812607,1714341045390,-500.0,0.00011232,2]
[324812608,1714341045399,-500.0,0.00011232,2]
[324812609,1714341045408,-500.0,0.00011232,2]
[324812610,1714341045417,-500.0,0.00011232,2]
[324812611,1714341045426,-500.0,0.00011232,2]
[324812612,1714341045435,-500.0,0.00011232,2]
[324812613,1714341045444,-500.0,0.00011232,2]
[324812614,1714341045454,-500.0,0.00011232,2]
[324812615,1714341045463,-505.31616697,0.00011232,2]
[324812616,1714341045474,-500.0,0.00011232,2]
[324812617,1714341045483,-500.0,0.00011232,2]
[324812618,1714341045493,-500.0,0.00011232,2]
[324812619,1714341045502,-500.0,0.00011232,2]
[324812620,1714341045512,-500.0,0.00011232,2]
[324812621,1714341045521,-500.0,0.00011232,2]
[324812622,1714341045530,-500.0,0.00011232,2]
[324812623,1714341045540,-620.55,0.00011232,2]
[324812624,1714341045549,-666.72,0.00011232,2]
[324812625,1714341045559,-394.73,0.00011232,2]
[324812626,1714341045568,-500.0,0.00011232,2]
[324812627,1714341045577,-500.0,0.00011232,2]
[324812628,1714341045587,-500.0,0.00011232,2]
[324812629,1714341045596,-524.75,0.00011232,2]
[324812630,1714341045605,-500.0,0.00011232,2]
[324812631,1714341045614,-500.0,0.00011232,2]
[324812632,1714341045624,-500.0,0.00011232,2]
[324812633,1714341045633,-444.64860483,0.00011232,2]
[324812634,1714341045643,-500.0,0.00011232,2]
[324812635,1714341045652,-500.0,0.00011232,2]
[324812636,1714341045664,-500.0,0.00011232,2]
[324812637,1714341045674,-500.0,0.00011232,2]
[324812638,1714341045684,-685.26,0.00011232,2]
[324812639,1714341045694,-500.0,0.00011232,2]
[324812640,1714341045703,-500.0,0.00011232,2]
[324812641,1714341045712,-500.0,0.00011232,2]
[324812642,1714341045722,-500.0,0.00011232,2]
[324812643,1714341045733,-1020.32,0.00011232,2]
[324812644,1714341045742,-500.0,0.00011232,2]
[324812645,1714341045753,-502.9,0.00011232,2]
[324812646,1714341045763,-500.0,0.00011232,2]
[324812647,1714341045774,-500.0,0.00011232,2]
[324812648,1714341045783,-520.06,0.00011232,2]
[324812649,1714341045793,-500.0,0.00011232,2]
[324812650,1714341045802,-657.62,0.00011232,2]
[324812651,1714341045812,-500.0,0.00011232,2]
[324812652,1714341045822,-500.0,0.00011232,2]
[324812653,1714341045832,-500.0,0.00011232,2]
[324812654,1714341045841,-500.0,0.00011232,2]
[324812655,1714341045850,-500.0,0.00011232,2]
[324812656,1714341045861,-619.83,0.00011232,2]
[324812657,1714341045871,-500.0,0.00011232,2]
[324812658,1714341045880,-497.97,0.00011232,2]
[324812659,1714341045889,-500.0,0.00011232,2]
[324812660,1714341045898,-500.0,0.00011232,2]
[324812661,1714341045907,-500.0,0.00011232,2]
[324812662,1714341045916,-526.3302765,0.00011232,2]
[324812663,1714341045926,-500.0,0.00011232,2]
[324812664,1714341045935,-529.3,0.00011232,2]
[324812666,1714341045944,-500.0,0.00011232,2]
[324812668,1714341045953,-500.0,0.00011232,2]
[324812669,1714341045963,-606.75,0.00011232,2]
[324812670,1714341045972,-500.0,0.00011232,2]
[324812671,1714341045982,-500.0,0.00011232,2]
[324812672,1714341045992,-863.33,0.00011232,2]
[324812674,1714341046001,-1529.21,0.00011232,2]
[324812676,1714341046010,-500.0,0.00011232,2]
[324812678,1714341046020,-518.89,0.00011232,2]
[324812680,1714341046029,-500.0,0.00011232,2]
[324812681,1714341046039,-500.0,0.00011232,2]
[324812682,1714341046048,-822.56,0.00011232,2]
[324812684,1714341046058,-323.21,0.00011232,2]
[324812685,1714341046068,-389.84,0.00011232,2]
[324812687,1714341046251,-4168.98,0.00011232,2]
[324812688,1714341046262,-500.0,0.00011232,2]
[324812689,1714341046272,-500.0,0.00011232,2]
[324812690,1714341046281,-671.78,0.00011232,2]
[324812691,1714341046291,-500.0,0.00011232,2]
[324812692,1714341046300,-1616.93,0.00011232,2]
[324812693,1714341046309,-500.0,0.00011232,2]
[324812694,1714341046319,-500.0,0.00011232,2]
[324812695,1714341046327,-374.64646464,0.00011232,2]
[324812696,1714341046337,-500.0,0.00011232,2]
[324812697,1714341046347,-500.0,0.00011232,2]
[324812698,1714341046357,-500.0,0.00011232,2]
[324812699,1714341046366,-721.38,0.00011232,2]
[324812700,1714341046376,-1027.03,0.00011232,2]
[324812701,1714341046385,-500.0,0.00011232,2]
[324812702,1714341046394,-500.0,0.00011232,2]
[324812703,1714341046404,-500.0,0.00011232,2]
[324812704,1714341046414,-500.0,0.00011232,2]
[324812705,1714341046423,-7823.72,0.00011232,2]
[324812706,1714341046432,-547.0,0.00011232,2]
[324812707,1714341046443,-500.0,0.00011232,2]
[324812708,1714341046452,-500.0,0.00011232,2]
[324812709,1714341046461,-500.0,0.00011232,2]
[324812710,1714341046470,-500.0,0.00011232,2]
[324812711,1714341046479,-500.0,0.00011232,2]
[324812712,1714341046488,-500.0,0.00011232,2]
[324812713,1714341046497,-500.0,0.00011232,2]
[324812714,1714341046506,-500.0,0.00011232,2]
[324812715,1714341046515,-2815.22,0.00011232,2]
[324812716,1714341046524,-1064.93,0.00011232,2]
[324812717,1714341046534,-500.0,0.00011232,2]
[324812718,1714341046543,-500.0,0.00011232,2]
[324812719,1714341046552,-500.0,0.00011232,2]
[324812720,1714341046561,-500.0,0.00011232,2]
[324812721,1714341046570,-500.0,0.00011232,2]
[324812722,1714341046580,-621.23,0.00011232,2]
[324812723,1714341046589,-500.0,0.00011232,2]
[324812724,1714341046598,-500.0,0.00011232,2]
[324812725,1714341046608,-500.0,0.00011232,2]
[324812726,1714341046617,-571.21,0.00011232,2]
[324812727,1714341046626,-500.0,0.00011232,2]
[324812728,1714341046635,-500.0,0.00011232,2]
[324812729,1714341046645,-500.0,0.00011232,2]
[324812730,1714341046654,-500.0,0.00011232,2]
[324812731,1714341046663,-765.24,0.00011232,2]
[324812732,1714341046672,-500.0,0.00011232,2]
[324812733,1714341046682,-500.0,0.00011232,2]
[324812734,1714341046691,-500.0,0.00011232,2]
[324812735,1714341046701,-500.0,0.00011232,2]
[324812736,1714341046711,-904.55,0.00011232,2]
[324812737,1714341046720,-500.0,0.00011232,2]
[324812738,1714341046729,-645.95,0.00011232,2]
[324812739,1714341046738,-500.0,0.00011232,2]
[324812740,1714341046747,-238.51536162,0.00011232,2]
[324812741,1714341046756,-596.75,0.00011232,2]
[324812742,1714341046765,-1292.15,0.00011232,2]
[324812743,1714341046775,-500.0,0.00011232,2]
[324812744,1714341046784,-500.0,0.00011232,2]
[324812745,1714341046794,-500.0,0.00011232,2]
[324812746,1714341046803,-283.53816272,0.00011232,2]
[324812747,1714341046812,-500.0,0.00011232,2]
[324812748,1714341046821,-500.0,0.00011232,2]
[324812749,1714341046831,-500.0,0.00011232,2]
[324812750,1714341046840,-500.0,0.00011232,2]
[324812751,1714341046849,-500.0,0.00011232,2]
[324812752,1714341046859,-500.0,0.00011232,2]
[324812753,1714341046869,-488.47,0.00011232,2]
[324812754,1714341046878,-500.0,0.00011232,2]
[324812755,1714341046887,-17248.02,0.00011232,2]
[324812756,1714341046896,-443.28,0.00011232,2]
[324812757,1714341046905,-628.53,0.00011232,2]
[324812758,1714341046915,-500.0,0.00011232,2]
[324812759,1714341046925,-500.0,0.00011232,2]
[324812760,1714341046934,-500.0,0.00011232,2]
[324812761,1714341046943,-500.0,0.00011232,2]
[324812762,1714341046953,-500.0,0.00011232,2]
[324812763,1714341046962,-500.0,0.00011232,2]
[324812764,1714341046971,-344.22,0.00011232,2]
[324812765,1714341046980,-501.18990107,0.00011232,2]
[324812766,1714341046989,-1054.15,0.00011232,2]
[324812767,1714341046998,-500.0,0.00011232,2]
[324812768,1714341047007,-500.0,0.00011232,2]
[324812769,1714341047016,-500.63526808,0.00011232,2]
[324812770,1714341047025,-500.0,0.00011232,2]
[324812771,1714341047034,-500.0,0.00011232,2]
[324812772,1714341047044,-500.0,0.00011232,2]
[324812773,1714341047053,-279.15,0.00011232,2]
[324812774,1714341047062,-500.0,0.00011232,2]
[324812775,1714341047071,-500.0,0.00011232,2]
[324812776,1714341047079,-500.0,0.00011232,2]
[324812777,1714341047090,-500.0,0.00011232,2]
[324812778,1714341047104,-173.74,0.00011232,2]
[324812779,1714341047114,-500.0,0.00011232,2]
[324812780,1714341047123,-335.84,0.00011232,2]
[324812781,1714341047132,-500.0,0.00011232,2]
[324812782,1714341047142,-500.0,0.00011232,2]
[324812783,1714341047151,-339.39,0.00011232,2]
[324812784,1714341047160,-500.0,0.00011232,2]
[324812785,1714341047170,-500.0,0.00011232,2]
[324812786,1714341047179,-400.0,0.00011501,2]
[324812787,1714341047189,-500.0,0.00011504,2]
[324812788,1714341047200,-500.0,0.00011504,2]
[324812789,1714341047210,-500.0,0.00011504,2]
[324812790,1714341047219,-500.0,0.00011504,2]
[324812791,1714341047229,-500.0,0.00011504,2]
[324812792,1714341047240,-500.0,0.00011504,2]
[324812793,1714341047249,-500.0,0.00011504,2]
[324812794,1714341047259,-500.0,0.00011504,2]
[324812795,1714341047268,-500.0,0.00011504,2]
[324812796,1714341047278,-500.0,0.00011504,2]
[324812797,1714341047286,-500.0,0.00011504,2]
[324812798,1714341047295,-500.0,0.00011504,2]
[324812799,1714341047304,-500.0,0.00011504,2]
[324812800,1714341047313,-500.0,0.00011504,2]
[324812801,1714341047322,-500.0,0.00011504,2]
[324812802,1714341047332,-622.4,0.00011504,2]
[324812803,1714341047341,-399.92,0.00011504,2]
[324812804,1714341047350,-500.0,0.00011504,2]
[324812805,1714341047359,-500.0,0.00011504,2]
[324812806,1714341047368,-500.0,0.00011504,2]
[324812807,1714341047377,-500.0,0.00011504,2]
[324812808,1714341047387,-500.0,0.00011504,2]
[324812809,1714341047396,-187.59,0.00011504,2]
[324812810,1714341047405,-500.0,0.00011504,2]
[324812811,1714341047414,-500.0,0.00011504,2]
[324812812,1714341047424,-500.0,0.00011504,2]
[324812813,1714341047433,-500.0,0.00011504,2]
[324812814,1714341047442,-500.0,0.00011504,2]
[324812815,1714341047451,-225.07,0.00011504,2]
[324812816,1714341047461,-500.0,0.00011504,2]
[324812817,1714341047471,-500.0,0.00011504,2]
[324812818,1714341047480,-500.0,0.00011504,2]
[324812819,1714341047489,-500.0,0.00011504,2]
[324812820,1714341047498,-500.0,0.00011504,2]
[324812821,1714341047507,-500.0,0.00011504,2]
[324812822,1714341047516,-642.19,0.00011504,2]
[324812823,1714341047525,-500.0,0.00011504,2]
[324812824,1714341047534,-500.0,0.00011504,2]
[324812825,1714341047543,-2064.16,0.00011505,2]
[324812826,1714341047552,-500.0,0.00011505,2]
[324812827,1714341047561,-843.47,0.00011505,2]
[324812828,1714341047570,-500.0,0.00011505,2]
[324812829,1714341047578,-1166.48,0.00011505,2]
[324812830,1714341047588,-500.0,0.00011505,2]
[324812831,1714341047596,-492.68,0.00011505,2]
[324812832,1714341047606,-592.13,0.00011505,2]
[324812833,1714341047615,-2311.26,0.00011505,2]
[324812834,1714341047624,-500.0,0.00011505,2]
[324812835,1714341047633,-624.4,0.00011505,2]
[324812836,1714341047643,-2248.85,0.00011505,2]
[324812837,1714341047651,-500.0,0.00011505,2]
[324812838,1714341047661,-500.0,0.00011506,2]
[324812839,1714341047670,-500.0,0.00011506,2]
[324812840,1714341047679,-500.0,0.00011506,2]
[324812841,1714341047689,-500.0,0.00011506,2]
[324812842,1714341047699,-235.53,0.00011506,2]
[324812843,1714341047709,-500.0,0.00011506,2]
[324812844,1714341047718,-500.0,0.00011506,2]
[324812845,1714341047728,-491.69992721,0.00011506,2]
[324812846,1714341047736,-266.10170728,0.00011506,2]
[324812847,1714341047746,-500.0,0.00011506,2]
[324812848,1714341047756,-500.0,0.00011506,2]
[324812849,1714341047764,-500.0,0.00011506,2]
[324812850,1714341047773,-500.0,0.00011506,2]
[324812851,1714341047782,-743.26,0.00011506,2]
[324812852,1714341047792,-227.82,0.00011506,2]
[324812853,1714341047801,-1035.98,0.00011506,2]
[324812854,1714341047810,-583.16,0.00011506,2]
[324812855,1714341047819,-500.0,0.00011506,2]
[324812856,1714341047828,-500.0,0.00011506,2]
[324812857,1714341047837,-373.5,0.00011506,2]
[324812858,1714341047846,-658.41,0.00011506,2]
[324812859,1714341047855,-500.0,0.00011506,2]
[324812860,1714341047864,-1038.44,0.00011506,2]
[324812861,1714341047873,-751.72,0.00011506,2]
[324812862,1714341047883,-500.0,0.00011506,2]
[324812863,1714341047892,-432.5,0.00011506,2]
[324812864,1714341047902,-342.45,0.00011506,2]
[324812865,1714341047911,-510.93,0.00011506,2]
[324812866,1714341047920,-500.0,0.00011506,2]
[324812867,1714341047929,-500.0,0.00011506,2]
[324812868,1714341047938,-229.35,0.00011506,2]
[324812869,1714341047947,-500.0,0.00011506,2]
[324812870,1714341047957,-612.97,0.00011506,2]
[324812871,1714341047967,-500.0,0.00011506,2]
[324812872,1714341047976,-500.0,0.00011506,2]
[324812873,1714341047986,-475.93,0.00011506,2]
[324812874,1714341047995,-414.99,0.00011506,2]
[324812875,1714341048004,-500.0,0.00011506,2]
[324812876,1714341048013,-500.0,0.00011506,2]
[324812877,1714341048022,-196.35,0.00011506,2]
[324812878,1714341048031,-500.0,0.00011506,2]
[324812879,1714341048039,-500.0,0.00011506,2]
[324812880,1714341048048,-539.7,0.00011506,2]
[324812881,1714341048057,-500.0,0.00011506,2]
[324812882,1714341048066,-500.0,0.00011506,2]
[324812883,1714341048075,-500.0,0.00011506,2]
[324812884,1714341048084,-500.0,0.00011506,2]
[324812885,1714341048099,-500.0,0.00011506,2]
[324812886,1714341048108,-500.0,0.00011506,2]
[324812887,1714341048117,-500.0,0.00011506,2]
[324812888,1714341048126,-500.0,0.00011506,2]
[324812889,1714341048137,-500.0,0.00011506,2]
[324812890,1714341048146,-500.0,0.00011506,2]
[324812891,1714341048155,-500.0,0.00011506,2]
[324812892,1714341048165,-500.0,0.00011506,2]
[324812893,1714341048175,-1043.37,0.00011506,2]
[324812894,1714341048185,-504.051757,0.00011506,2]
[324812895,1714341048194,-500.0,0.00011506,2]
[324812896,1714341048203,-212.96322211,0.00011506,2]
[324812897,1714341048213,-500.0,0.00011506,2]
[324812898,1714341048222,-500.0,0.00011506,2]
[324812899,1714341048232,-500.0,0.00011506,2]
[324812900,1714341048242,-507.54010638,0.00011506,2]
[324812901,1714341048252,-500.0,0.00011506,2]
[324812902,1714341048261,-500.0,0.00011506,2]
[324812903,1714341048271,-500.0,0.00011506,2]
[324812904,1714341048281,-666.72,0.00011506,2]
[324812905,1714341048290,-500.0,0.00011506,2]
[324812906,1714341048300,-500.0,0.00011506,2]
[324812907,1714341048310,-500.0,0.00011506,2]
[324812908,1714341048321,-500.0,0.00011506,2]
[324812909,1714341048332,-500.0,0.00011506,2]
[324812910,1714341048342,-500.0,0.00011506,2]
[324812911,1714341048352,-685.26,0.00011506,2]
[324812912,1714341048362,-596.97,0.00011506,2]
[324812913,1714341048372,-500.0,0.00011506,2]
[324812914,1714341048381,-500.0,0.00011506,2]
[324812915,1714341048391,-439.12,0.00011506,2]
[324812916,1714341048400,-1020.32,0.00011506,2]
[324812917,1714341048410,-502.9,0.00011506,2]
[324812918,1714341048420,-398.74,0.00011506,2]
[324812919,1714341048430,-500.0,0.00011506,2]
[324812920,1714341048442,-500.0,0.00011506,2]
[324812921,1714341048451,-657.62,0.00011506,2]
[324812922,1714341048462,-500.0,0.00011506,2]
[324812923,1714341048473,-500.0,0.00011506,2]
[324812924,1714341048482,-500.0,0.00011506,2]
[324812925,1714341048492,-500.0,0.00011506,2]
[324812926,1714341048502,-500.0,0.00011506,2]
[324812927,1714341048512,-500.0,0.00011506,2]
[324812928,1714341048522,-529.3,0.00011506,2]
[324812929,1714341048573,-500.0,0.00011506,2]
[324812930,1714341048582,-500.0,0.00011506,2]
[324812931,1714341048592,-606.75,0.00011506,2]
[324812932,1714341048601,-500.0,0.00011506,2]
[324812933,1714341048610,-500.0,0.00011506,2]
[324812934,1714341048619,-863.33,0.00011506,2]
[324812935,1714341048628,-1529.21,0.00011506,2]
[324812936,1714341048637,-500.0,0.00011506,2]
[324812937,1714341048646,-518.89,0.00011506,2]
[324812938,1714341048655,-500.0,0.00011506,2]
[324812939,1714341048664,-500.0,0.00011506,2]
[324812940,1714341048673,-822.56,0.00011506,2]
[324812941,1714341048682,-4168.98,0.00011506,2]
[324812942,1714341048691,-500.0,0.00011506,2]
[324812943,1714341048700,-671.78,0.00011506,2]
[324812944,1714341048711,-500.0,0.00011506,2]
[324812945,1714341048720,-500.0,0.00011506,2]
[324812946,1714341048729,-1616.93,0.00011506,2]
[324812947,1714341048738,-500.0,0.00011506,2]
[324812948,1714341048747,-500.0,0.00011506,2]
[324812949,1714341048756,-500.0,0.00011506,2]
[324812950,1714341048765,-721.38,0.00011506,2]
[324812951,1714341048774,-1027.03,0.00011506,2]
[324812952,1714341048784,-500.0,0.00011506,2]
[324812953,1714341048793,-500.0,0.00011506,2]
[324812954,1714341048802,-7823.72,0.00011506,2]
[324812955,1714341048811,-547.0,0.00011506,2]
[324812956,1714341048820,-500.0,0.00011506,2]
[324812957,1714341048829,-414.1,0.00011506,2]
[324812958,1714341048838,-500.0,0.00011506,2]
[324812959,1714341048847,-500.0,0.00011506,2]
[324812960,1714341048856,-500.0,0.00011506,2]
[324812961,1714341048866,-739.98,0.00011506,2]
[324812962,1714341048874,-500.0,0.00011506,2]
[324812963,1714341048883,-500.0,0.00011506,2]
[324812964,1714341048892,-500.0,0.00011506,2]
[324812965,1714341048901,-2815.22,0.00011506,2]
[324812966,1714341048911,-1064.93,0.00011506,2]
[324812967,1714341048920,-500.0,0.00011506,2]
[324812968,1714341048929,-500.0,0.00011506,2]
[324812969,1714341048938,-598.0,0.00011506,2]
[324812970,1714341048947,-500.0,0.00011506,2]
[324812971,1714341048957,-500.0,0.00011506,2]
[324812972,1714341048965,-500.0,0.00011506,2]
[324812973,1714341048974,-500.0,0.00011506,2]